fUSD/lending_fUSD_20250524
["ID","MTS","AMOUNT","RATE_DAILY","PERIOD"]
[362252079,1748119847253,-1470.84,0.00019671,2]
[362252080,1748119847263,-852.92,0.00019671,2]
[362252081,1748119847272,-512.52,0.00019671,2]
[362252082,1748119847282,-3769.84,0.00019671,2]
[362252083,1748119847291,-420.0,0.00019671,2]
[362252084,1748119847302,-420.0,0.00019671,2]
[362252085,1748119847312,-420.0,0.00019671,2]
[362252086,1748119847323,-859.68,0.00019671,2]
[362252087,1748119847333,-61518.15,0.00019671,2]
[362252088,1748119847342,-850.88,0.00019671,2]
[362252089,1748119847352,-1069.16,0.00019671,2]
[362252090,1748119847362,-455.13,0.00019671,2]
[362252091,1748119847371,-420.0,0.00019671,2]
[362252092,1748119847380,-1817.39,0.00019671,2]
[362252093,1748119847390,-850.0,0.00019671,2]
[362252094,1748119847399,-667.87,0.00019671,2]
[362252095,1748119847410,-420.0,0.00019671,2]
[362252096,1748119847420,-1493.3,0.00019671,2]
[362252097,1748119847429,-1764.72,0.00019671,2]
[362252098,1748119847439,-528.87,0.00019671,2]
[362252099,1748119847449,-1446.21,0.00019671,2]
[362252100,1748119847458,-5483.03,0.00019671,2]
[362252101,1748119847470,-485.89,0.00019671,2]
[362252102,1748119847479,-739.18,0.00019671,2]
[362252103,1748119847490,-420.0,0.00019671,2]
[362252104,1748119847499,-398.08,0.00019671,2]
[362252105,1748119847509,-453.8,0.00019671,2]
[362252106,1748119847519,-1702.6,0.00019671,2]
[362252107,1748119847528,-420.0,0.00019671,2]
[362252108,1748119847537,-500.0,0.00019697,2]
[362252109,1748119847547,-426.85,0.00019698,2]
[362252110,1748119847557,-642.39,0.00019698,2]
[362252111,1748119847569,-443.05,0.00019698,2]
[362252112,1748119847579,-725.46,0.00019698,2]
[362252113,1748119847589,-3315.14,0.00019698,2]
[362252114,1748119847599,-1884.18,0.00019698,2]
[362252115,1748119847608,-3932.93,0.00019698,2]
[362252116,1748119847619,-637.73,0.00019698,2]
[362252117,1748119847629,-1470.84,0.00019698,2]
[362252118,1748119847639,-852.92,0.00019698,2]
[362252119,1748119847649,-512.52,0.00019698,2]
[362252120,1748119847658,-3769.84,0.00019698,2]
[362252121,1748119847669,-420.0,0.00019698,2]
[362252122,1748119847679,-434.01534992,0.00019698,2]
[362252123,1748119847689,-420.0,0.00019698,2]
[362252124,1748119847701,-859.68,0.00019698,2]
[362252125,1748119847712,-61518.15,0.00019698,2]
[362252126,1748119847725,-850.88,0.00019698,2]
[362252127,1748119847736,-1069.16,0.00019698,2]
[362252128,1748119847746,-455.13,0.00019698,2]
[362252129,1748119847765,-420.0,0.00019698,2]
[362252130,1748119847776,-1817.39,0.00019698,2]
[362252131,1748119847786,-850.0,0.00019698,2]
[362252132,1748119847798,-667.87,0.00019698,2]
[362252133,1748119847808,-420.0,0.00019698,2]
[362252134,1748119847820,-1493.3,0.00019698,2]
[362252135,1748119847830,-1764.72,0.00019698,2]
[362252136,1748119847840,-528.87,0.00019698,2]
[362252137,1748119847850,-1446.21,0.00019698,2]
[362252138,1748119847862,-5483.03,0.00019698,2]
[362252139,1748119847875,-485.89,0.00019698,2]
[362252140,1748119847888,-739.18,0.00019698,2]
[362252141,1748119847899,-225.6,0.00019698,2]
[362252142,1748119847910,-453.8,0.00019698,2]
[362252143,1748119847919,-1702.6,0.00019698,2]
[362252144,1748119847929,-420.0,0.00019698,2]
[362252145,1748119847939,-72682.39514538,0.000197,2]
[362252146,1748119847949,-1000.0,0.000197,2]
[362252147,1748119847958,-5510.78582357,0.00019701,2]
[362252148,1748119847968,-3130.60806298,0.00019717,2]
[362252149,1748119847978,-426.85,0.00019726,2]
[362252150,1748119847988,-642.39,0.00019726,2]
[362252151,1748119847998,-725.46,0.00019726,2]
[362252152,1748119848008,-3315.14,0.00019726,2]
[362252153,1748119848018,-1884.18,0.00019726,2]
[362252154,1748119848027,-3932.93,0.00019726,2]
[362252155,1748119848036,-637.73,0.00019726,2]
[362252156,1748119848047,-1470.84,0.00019726,2]
[362252157,1748119848056,-852.92,0.00019726,2]
[362252158,1748119848066,-512.52,0.00019726,2]
[362252159,1748119848076,-3769.84,0.00019726,2]
[362252160,1748119848086,-420.0,0.00019726,2]
[362252161,1748119848096,-420.0,0.00019726,2]
[362252162,1748119848106,-859.68,0.00019726,2]
[362252163,1748119848117,-61518.15,0.00019726,2]
[362252164,1748119848127,-850.88,0.00019726,2]
[362252165,1748119848136,-1069.16,0.00019726,2]
[362252166,1748119848146,-455.13,0.00019726,2]
[362252167,1748119848155,-420.0,0.00019726,2]
[362252168,1748119848165,-1817.39,0.00019726,2]
[362252169,1748119848175,-850.0,0.00019726,2]
[362252170,1748119848185,-667.87,0.00019726,2]
[362252171,1748119848194,-192.4,0.00019726,2]
[362252172,1748119848204,-1493.3,0.00019726,2]
[362252173,1748119848214,-1764.72,0.00019726,2]
[362252174,1748119848223,-528.87,0.00019726,2]
[362252175,1748119848233,-1446.21,0.00019726,2]
[362252176,1748119848243,-5483.03,0.00019726,2]
[362252177,1748119848253,-485.89,0.00019726,2]
[362252178,1748119848262,-739.18,0.00019726,2]
[362252179,1748119848272,-453.8,0.00019726,2]
[362252180,1748119848281,-1702.6,0.00019726,2]
[362252181,1748119848300,-294.78096481,0.00019726,2]
[362252182,1748119848311,-162.91,0.00019726,2]
[362252183,1748119848322,-162.91,0.00019726,2]
[362252184,1748119848332,-162.91,0.00019726,2]
[362252185,1748119848341,-162.91,0.00019726,2]
[362252186,1748119848351,-162.91,0.00019726,2]
[362252187,1748119848362,-401.30575916,0.00019726,2]
[362252188,1748119848371,-150.0,0.00019746,2]
[362252189,1748119848380,-937.0,0.00019748,2]
[362252190,1748119848390,-800.0,0.00019748,2]
[362252191,1748119848400,-4054.0,0.00019748,2]
[362252192,1748119848409,-280.828,0.00019748,2]
[362252193,1748119848420,-183.216,0.00019748,2]
[362252194,1748119848429,-150.621,0.00019748,2]
[362252195,1748119848439,-6916.0,0.00019748,2]
[362252196,1748119848448,-881.0,0.00019748,2]
[362252197,1748119848457,-844.0,0.00019748,2]
[362252198,1748119848467,-426.85,0.00019753,2]
[362252199,1748119848476,-642.39,0.00019753,2]
[362252200,1748119848486,-725.46,0.00019753,2]
[362252201,1748119848495,-3315.14,0.00019753,2]
[362252202,1748119848505,-1884.18,0.00019753,2]
[362252203,1748119848514,-3932.93,0.00019753,2]
[362252204,1748119848524,-637.73,0.00019753,2]
[362252205,1748119848533,-1470.84,0.00019753,2]
[362252206,1748119848543,-852.92,0.00019753,2]
[362252207,1748119848552,-512.52,0.00019753,2]
[362252208,1748119848563,-3769.84,0.00019753,2]
[362252209,1748119848574,-420.0,0.00019753,2]
[362252210,1748119848584,-557.56,0.00019753,2]
[362252211,1748119848594,-859.68,0.00019753,2]
[362252212,1748119848604,-61518.15,0.00019753,2]
[362252213,1748119848613,-850.88,0.00019753,2]
[362252214,1748119848623,-1069.16,0.00019753,2]
[362252215,1748119848632,-455.13,0.00019753,2]
[362252216,1748119848641,-420.0,0.00019753,2]
[362252217,1748119848651,-1817.39,0.00019753,2]
[362252218,1748119848660,-850.0,0.00019753,2]
[362252219,1748119848670,-667.87,0.00019753,2]
[362252220,1748119848679,-1493.3,0.00019753,2]
[362252221,1748119848689,-1764.72,0.00019753,2]
[362252222,1748119848698,-528.87,0.00019753,2]
[362252223,1748119848709,-1446.21,0.00019753,2]
[362252224,1748119848719,-5483.03,0.00019753,2]
[362252225,1748119848732,-485.89,0.00019753,2]
[362252226,1748119848742,-739.18,0.00019753,2]
[362252227,1748119848752,-453.8,0.00019753,2]
[362252228,1748119848761,-1702.6,0.00019753,2]
[362252229,1748119848770,-215.0738,0.00019753,2]
[362252230,1748119848780,-500.0,0.00019779,2]
[362252231,1748119848789,-426.85,0.0001978,2]
[362252232,1748119848799,-642.39,0.0001978,2]
[362252233,1748119848809,-725.46,0.0001978,2]
[362252234,1748119848821,-3315.14,0.0001978,2]
[362252235,1748119848831,-1884.18,0.0001978,2]
[362252236,1748119848840,-3932.93,0.0001978,2]
[362252237,1748119848849,-637.73,0.0001978,2]
[362252238,1748119848859,-1470.84,0.0001978,2]
[362252239,1748119848869,-852.92,0.0001978,2]
[362252240,1748119848878,-512.52,0.0001978,2]
[362252241,1748119848888,-3769.84,0.0001978,2]
[362252242,1748119848898,-277.89,0.0001978,2]
[362252243,1748119848908,-859.68,0.0001978,2]
[362252244,1748119848918,-61518.15,0.0001978,2]
[362252245,1748119848928,-850.88,0.0001978,2]
[362252246,1748119848937,-1069.16,0.0001978,2]
[362252247,1748119848947,-455.13,0.0001978,2]
[362252248,1748119848957,-232.0620145,0.0001978,2]
[362252249,1748119848966,-1817.39,0.0001978,2]
[362252250,1748119848975,-850.0,0.0001978,2]
[362252251,1748119848985,-667.87,0.0001978,2]
[362252252,1748119848994,-1493.3,0.0001978,2]
[362252253,1748119849004,-1764.72,0.0001978,2]
[362252254,1748119849014,-528.87,0.0001978,2]
[362252255,1748119849024,-1446.21,0.0001978,2]
[362252256,1748119849034,-5483.03,0.0001978,2]
[362252257,1748119849045,-485.89,0.0001978,2]
[362252258,1748119849055,-739.18,0.0001978,2]
[362252259,1748119849067,-453.8,0.0001978,2]
[362252260,1748119849076,-1702.6,0.0001978,2]
[362252261,1748119849087,-1000.0,0.000198,2]
[362252262,1748119849097,-5510.78582357,0.00019801,2]
[362252263,1748119849107,-426.92795006,0.00019808,2]
[362252264,1748119849118,-642.39,0.00019808,2]
[362252265,1748119849128,-725.55,0.00019808,2]
[362252266,1748119849138,-3315.3278435,0.00019808,2]
[362252267,1748119849148,-1884.39810831,0.00019808,2]
[362252268,1748119849157,-3932.96597312,0.00019808,2]
[362252269,1748119849167,-637.73,0.00019808,2]
[362252270,1748119849178,-1471.05,0.00019808,2]
[362252271,1748119849187,-853.04,0.00019808,2]
[362252272,1748119849197,-512.7,0.00019808,2]
[362252273,1748119849207,-3770.06,0.00019808,2]
[362252274,1748119849217,-859.76,0.00019808,2]
[362252275,1748119849228,-40291.27110704,0.00019808,2]
[362252276,1748119849717,-420.0,0.00019178,2]
[362252277,1748119849731,-1302.07,0.00019178,2]
[362252278,1748119849741,-420.0,0.00019178,2]
[362252279,1748119849750,-373.51540093,0.00019178,2]
[362252280,1748119849761,-420.0,0.00019205,2]
[362252281,1748119849771,-1302.07,0.00019205,2]
[362252282,1748119849780,-420.0,0.00019232,2]
[362252283,1748119849790,-1302.07,0.00019232,2]
[362252284,1748119849800,-420.0,0.0001926,2]
[362252285,1748119850015,-1302.07,0.0001926,2]
[362252286,1748119850025,-420.0,0.00019287,2]
[362252287,1748119850035,-1302.07,0.00019287,2]
[362252288,1748119850045,-420.0,0.00019315,2]
[362252289,1748119850054,-1302.07,0.00019315,2]
[362252290,1748119850064,-420.0,0.00019342,2]
[362252291,1748119850075,-1302.07,0.00019342,2]
[362252292,1748119850086,-479.33,0.00019369,2]
[362252293,1748119850095,-1302.07,0.00019369,2]
[362252294,1748119850105,-1302.07,0.00019397,2]
[362252295,1748119850114,-769.99474228,0.00019424,2]
[362252296,1748120264400,776.18,0.00025267,120]
[362252297,1748120418185,250.0,0.00015,2]
[362252298,1748120419222,300.0,0.00017,2]
[362252299,1748120621353,640.87,0.00016362,2]
[362252301,1748120752888,297.97,0.00013699,2]
[362252311,1748121031652,-221.91,0.00018343,2]
[362252312,1748121031662,-168.88,0.00018367,2]
[362252313,1748121031673,-776.18,0.00018376,2]
[362252321,1748121032042,-1000.0,0.00018392,2]
[362252324,1748121032062,-150.0,0.00018408,7]
[362252327,1748121032082,-1194.41,0.00018501,2]
[362252329,1748121032094,-207.0,0.00018589,2]
[362252331,1748121032104,-640.87,0.00018626,2]
[362252333,1748121032114,-80.2988,0.00018795,2]
[362252336,1748121032126,-124.7012,0.00018795,2]
[362252337,1748121032136,-2766.65009183,0.00018796,2]
[362252340,1748121032148,-2990.70990817,0.00018796,2]
[362252342,1748121032158,-207.4,0.0001883,2]
[362252344,1748121032167,-350.0,0.00019,2]
[362252346,1748121032176,-2872.53656213,0.00019078,2]
[362252858,1748121037739,-436.78192145,0.00019078,2]
[362253064,1748121039771,-584.45048518,0.00019078,2]
[362253066,1748121039780,-1159.0526,0.00019078,2]
[362253068,1748121039790,-151.0,0.00019166,2]
[362253070,1748121039801,-156.13764048,0.00019166,2]
[362253072,1748121039811,-1199.20597015,0.00019166,2]
[362253074,1748121039820,-3893.76896871,0.00019169,2]
[362253076,1748121039829,-420.32179064,0.00019178,2]
[362253078,1748121039839,-477.23,0.00019178,2]
[362253080,1748121039849,-420.0,0.00019178,2]
[362253082,1748121039858,-420.0,0.00019178,2]
[362253084,1748121039868,-420.0,0.00019178,2]
[362253086,1748121039877,-420.0,0.00019178,2]
[362253088,1748121039887,-420.0,0.00019178,2]
[362253090,1748121039896,-420.0,0.00019178,2]
[362253092,1748121039905,-420.0,0.00019178,2]
[362253094,1748121039915,-420.0,0.00019178,2]
[362253096,1748121039924,-420.0,0.00019178,2]
[362253098,1748121039934,-420.0,0.00019178,2]
[362253100,1748121039944,-420.0,0.00019178,2]
[362253102,1748121039953,-420.0,0.00019178,2]
[362253104,1748121039963,-420.0,0.00019178,2]
[362253106,1748121039972,-420.0,0.00019178,2]
[362253108,1748121039982,-426.78664142,0.00019178,2]
[362253110,1748121039991,-420.0,0.00019178,2]
[362253112,1748121040001,-420.0,0.00019178,2]
[362253114,1748121040011,-420.0,0.00019178,2]
[362253116,1748121040019,-420.0,0.00019178,2]
[362253118,1748121040028,-420.0,0.00019178,2]
[362253120,1748121040037,-420.0,0.00019178,2]
[362253122,1748121040046,-200.12535639,0.00019178,2]
[362253125,1748121040055,-403.69017388,0.00019178,2]
[362253127,1748121040064,-420.0,0.00019178,2]
[362253129,1748121040075,-420.0,0.00019178,2]
[362253131,1748121040084,-420.0,0.00019178,2]
[362253133,1748121040093,-420.0,0.00019178,2]
[362253135,1748121040102,-420.0,0.00019178,2]
[362253137,1748121040112,-420.0,0.00019178,2]
[362253139,1748121040122,-486.35,0.00019178,2]
[362253141,1748121040132,-420.0,0.00019178,2]
[362253143,1748121040141,-420.0,0.00019178,2]
[362253145,1748121040151,-420.0,0.00019178,2]
[362253147,1748121040161,-315.60183984,0.00019178,2]
[362253149,1748121040170,-420.0,0.00019178,2]
[362253151,1748121040180,-420.0,0.00019178,2]
[362253153,1748121040190,-420.0,0.00019178,2]
[362253155,1748121040199,-420.0,0.00019178,2]
[362253157,1748121040208,-420.0,0.00019178,2]
[362253159,1748121040218,-420.0,0.00019178,2]
[362253161,1748121040227,-420.0,0.00019178,2]
[362253163,1748121040237,-420.0,0.00019178,2]
[362253165,1748121040246,-420.0,0.00019178,2]
[362253167,1748121040255,-420.0,0.00019178,2]
[362253169,1748121040264,-157.13030483,0.00019178,2]
[362253171,1748121040273,-420.0,0.00019178,2]
[362253173,1748121040282,-420.0,0.00019178,2]
[362253175,1748121040291,-420.0,0.00019178,2]
[362253177,1748121040299,-444.21971361,0.00019178,2]
[362253179,1748121040308,-428.53878839,0.00019178,2]
[362253181,1748121040317,-424.87336068,0.00019178,2]
[362253183,1748121040326,-420.0,0.00019178,2]
[362253185,1748121040335,-422.00691881,0.00019178,2]
[362253188,1748121040344,-420.0,0.00019178,2]
[362253190,1748121040353,-420.0,0.00019178,2]
[362253192,1748121040362,-420.0,0.00019178,2]
[362253194,1748121040371,-420.0,0.00019178,2]
[362253196,1748121040381,-2071.97,0.00019178,2]
[362253198,1748121040390,-420.0,0.00019178,2]
[362253200,1748121040400,-1256.12,0.00019178,2]
[362253202,1748121040409,-420.0,0.00019178,2]
[362253204,1748121040418,-391.20445445,0.00019178,2]
[362253206,1748121040427,-420.0,0.00019178,2]
[362253208,1748121040437,-420.0,0.00019178,2]
[362253210,1748121040446,-420.0,0.00019178,2]
[362253212,1748121040456,-420.0,0.00019178,2]
[362253214,1748121040465,-420.0,0.00019178,2]
[362253216,1748121040475,-420.0,0.00019178,2]
[362253218,1748121040484,-420.0,0.00019178,2]
[362253220,1748121040494,-420.0,0.00019178,2]
[362253222,1748121040503,-420.0,0.00019178,2]
[362253224,1748121040512,-420.0,0.00019178,2]
[362253226,1748121040522,-781.71,0.00019178,2]
[362253228,1748121040531,-420.0,0.00019178,2]
[362253229,1748121040541,-420.0,0.00019178,2]
[362253231,1748121040550,-420.0,0.00019178,2]
[362253233,1748121040560,-420.0,0.00019178,2]
[362253235,1748121040569,-420.0,0.00019178,2]
[362253237,1748121040578,-420.0,0.00019178,2]
[362253239,1748121040587,-511.04,0.00019178,2]
[362253241,1748121040596,-2862.14,0.00019178,2]
[362253243,1748121040605,-420.0,0.00019178,2]
[362253245,1748121040615,-420.0,0.00019178,2]
[362253247,1748121040624,-420.0,0.00019178,2]
[362253249,1748121040634,-420.0,0.00019178,2]
[362253252,1748121040643,-420.0,0.00019178,2]
[362253254,1748121040653,-2742.81,0.00019178,2]
[362253256,1748121040662,-420.0,0.00019178,2]
[362253258,1748121040672,-420.0,0.00019178,2]
[362253259,1748121040681,-420.0,0.00019178,2]
[362253262,1748121040690,-477.65,0.00019178,2]
[362253263,1748121040700,-420.0,0.00019178,2]
[362253265,1748121040710,-420.0,0.00019178,2]
[362253267,1748121040720,-4747.28,0.00019178,2]
[362253269,1748121040729,-420.0,0.00019178,2]
[362253271,1748121040738,-420.0,0.00019178,2]
[362253273,1748121040748,-600.96,0.00019178,2]
[362253276,1748121040758,-420.0,0.00019178,2]
[362253278,1748121040768,-420.0,0.00019178,2]
[362253280,1748121040778,-420.0,0.00019178,2]
[362253281,1748121040788,-420.0,0.00019178,2]
[362253284,1748121040798,-420.0,0.00019178,2]
[362253286,1748121040810,-420.0,0.00019178,2]
[362253288,1748121040819,-1407.82,0.00019178,2]
[362253290,1748121040828,-420.0,0.00019178,2]
[362253291,1748121040838,-420.0,0.00019178,2]
[362253294,1748121040849,-420.0,0.00019178,2]
[362253295,1748121040858,-420.0,0.00019178,2]
[362253296,1748121040867,-2000.0,0.00019178,2]
[362253297,1748121040876,-420.0,0.00019178,2]
[362253298,1748121040885,-420.0,0.00019178,2]
[362253299,1748121040894,-420.0,0.00019178,2]
[362253300,1748121040903,-420.0,0.00019178,2]
[362253301,1748121040912,-331.771804,0.00019178,2]
[362253302,1748121040921,-420.0,0.00019178,2]
[362253303,1748121040929,-420.0,0.00019178,2]
[362253304,1748121040938,-43018.45,0.00019178,2]
[362253306,1748121040949,-615.61,0.00019178,2]
[362253308,1748121040958,-420.0,0.00019178,2]
[362253310,1748121040967,-420.0,0.00019178,2]
[362253312,1748121040978,-420.0,0.00019178,2]
[362253314,1748121040987,-420.0,0.00019178,2]
[362253316,1748121040997,-420.0,0.00019178,2]
[362253318,1748121041006,-420.0,0.00019178,2]
[362253320,1748121041015,-420.0,0.00019178,2]
[362253322,1748121041024,-420.0,0.00019178,2]
[362253324,1748121041034,-420.0,0.00019178,2]
[362253326,1748121041043,-420.0,0.00019178,2]
[362253328,1748121041052,-420.0,0.00019178,2]
[362253330,1748121041062,-420.0,0.00019178,2]
[362253332,1748121041071,-645.33,0.00019178,2]
[362253334,1748121041081,-420.0,0.00019178,2]
[362253336,1748121041091,-420.0,0.00019178,2]
[362253338,1748121041099,-761.49,0.00019178,2]
[362253340,1748121041109,-420.0,0.00019178,2]
[362253342,1748121041119,-420.0,0.00019178,2]
[362253344,1748121041128,-420.0,0.00019178,2]
[362253346,1748121041138,-420.0,0.00019178,2]
[362253348,1748121041148,-420.0,0.00019178,2]
[362253350,1748121041157,-420.0,0.00019178,2]
[362253352,1748121041167,-420.0,0.00019178,2]
[362253354,1748121041176,-420.0,0.00019178,2]
[362253356,1748121041186,-420.0,0.00019178,2]
[362253358,1748121041195,-420.0,0.00019178,2]
[362253360,1748121041204,-420.0,0.00019178,2]
[362253362,1748121041213,-615.24,0.00019178,2]
[362253364,1748121041222,-420.0,0.00019178,2]
[362253366,1748121041231,-420.0,0.00019178,2]
[362253368,1748121041240,-443.81,0.00019178,2]
[362253370,1748121041250,-2069.33,0.00019178,2]
[362253372,1748121041259,-420.0,0.00019178,2]
[362253374,1748121041269,-420.0,0.00019178,2]
[362253376,1748121041278,-420.0,0.00019178,2]
[362253378,1748121041288,-420.0,0.00019178,2]
[362253380,1748121041297,-420.0,0.00019178,2]
[362253382,1748121041307,-1121.36,0.00019178,2]
[362253384,1748121041316,-1060.56,0.00019178,2]
[362253386,1748121041325,-466.47799624,0.00019178,2]
[362253388,1748121041334,-420.0,0.00019178,2]
[362253390,1748121041343,-420.0,0.00019178,2]
[362253392,1748121041352,-420.0,0.00019178,2]
[362253394,1748121041361,-420.0,0.00019178,2]
[362253396,1748121041370,-420.0,0.00019178,2]
[362253398,1748121041380,-420.0,0.00019178,2]
[362253399,1748121041389,-420.0,0.00019178,2]
[362253402,1748121041399,-420.0,0.00019178,2]
[362253404,1748121041408,-420.0,0.00019178,2]
[362253406,1748121041418,-420.0,0.00019178,2]
[362253408,1748121041428,-420.0,0.00019178,2]
[362253410,1748121041437,-420.0,0.00019178,2]
[362253412,1748121041446,-420.0,0.00019178,2]
[362253413,1748121041455,-420.0,0.00019178,2]
[362253416,1748121041464,-492.79,0.00019178,2]
[362253417,1748121041474,-420.0,0.00019178,2]
[362253420,1748121041483,-420.0,0.00019178,2]
[362253421,1748121041492,-4412.11,0.00019178,2]
[362253424,1748121041502,-420.0,0.00019178,2]
[362253426,1748121041511,-312.797508,0.00019178,2]
[362253427,1748121041521,-420.0,0.00019178,2]
[362253429,1748121041530,-420.0,0.00019178,2]
[362253432,1748121041540,-420.0,0.00019178,2]
[362253434,1748121041549,-420.0,0.00019178,2]
[362253436,1748121041560,-420.0,0.00019178,2]
[362253438,1748121041570,-1193.05,0.00019178,2]
[362253440,1748121041580,-420.0,0.00019178,2]
[362253442,1748121041590,-420.0,0.00019178,2]
[362253444,1748121041599,-420.0,0.00019178,2]
[362253446,1748121041608,-420.0,0.00019178,2]
[362253448,1748121041617,-420.0,0.00019178,2]
[362253450,1748121041626,-420.0,0.00019178,2]
[362253452,1748121041635,-1878.36483786,0.00019187,2]
[362253454,1748121041644,-158.37012829,0.00019187,2]
[362253456,1748121041654,-261.46078065,0.00019199,2]
[362253458,1748121041664,-26787.0,0.000192,2]
[362253460,1748121041673,-420.0,0.00019205,2]
[362253462,1748121041682,-408.84096481,0.00019205,2]
[362253464,1748121041691,-420.0,0.00019205,2]
[362253466,1748121041700,-420.0,0.00019205,2]
[362253487,1748121041889,-420.0,0.00019205,2]
[362253489,1748121041901,-469.4,0.00019205,2]
[362253491,1748121041910,-420.0,0.00019205,2]
[362253493,1748121041920,-420.0,0.00019205,2]
[362253495,1748121041929,-420.0,0.00019205,2]
[362253497,1748121041940,-420.0,0.00019205,2]
[362253499,1748121041950,-420.0,0.00019205,2]
[362253501,1748121041959,-2071.97,0.00019205,2]
[362253503,1748121041968,-420.0,0.00019205,2]
[362253506,1748121041978,-1256.12,0.00019205,2]
[362253508,1748121041987,-420.0,0.00019205,2]
[362253510,1748121041997,-420.0,0.00019205,2]
[362253512,1748121042008,-513.12314524,0.00019205,2]
[362253513,1748121042017,-182.27659046,0.00019205,2]
[362253516,1748121042026,-781.71,0.00019205,2]
[362253518,1748121042035,-511.04,0.00019205,2]
[362253520,1748121042045,-2862.14,0.00019205,2]
[362253522,1748121042055,-420.0,0.00019205,2]
[362253524,1748121042065,-2742.81,0.00019205,2]
[362253526,1748121042083,-477.65,0.00019205,2]
[362253528,1748121042093,-4747.28,0.00019205,2]
[362253530,1748121042103,-420.0,0.00019205,2]
[362253532,1748121042112,-600.96,0.00019205,2]
[362253534,1748121042123,-420.0,0.00019205,2]
[362253536,1748121042132,-420.0,0.00019205,2]
[362253538,1748121042142,-1407.82,0.00019205,2]
[362253540,1748121042151,-420.0,0.00019205,2]
[362253542,1748121042161,-420.0,0.00019205,2]
[362253544,1748121042171,-420.0,0.00019205,2]
[362253546,1748121042180,-43018.45,0.00019205,2]
[362253548,1748121042189,-615.61,0.00019205,2]
[362253550,1748121042199,-420.0,0.00019205,2]
[362253552,1748121042208,-420.0,0.00019205,2]
[362253554,1748121042218,-645.33,0.00019205,2]
[362253556,1748121042227,-761.49,0.00019205,2]
[362253558,1748121042237,-203.19468714,0.00019205,2]
[362253560,1748121042247,-420.0,0.00019205,2]
[362253562,1748121042258,-420.0,0.00019205,2]
[362253564,1748121042272,-420.0,0.00019205,2]
[362253566,1748121042282,-420.0,0.00019205,2]
[362253568,1748121042292,-420.0,0.00019205,2]
[362253570,1748121042301,-420.0,0.00019205,2]
[362253572,1748121042311,-615.24,0.00019205,2]
[362253574,1748121042320,-420.0,0.00019205,2]
[362253576,1748121042330,-443.81,0.00019205,2]
[362253578,1748121042339,-2069.33,0.00019205,2]
[362253580,1748121042349,-420.0,0.00019205,2]
[362253582,1748121042358,-420.0,0.00019205,2]
[362253584,1748121042369,-1121.36,0.00019205,2]
[362253586,1748121042379,-1060.56,0.00019205,2]
[362253588,1748121042388,-420.0,0.00019205,2]
[362253590,1748121042398,-420.0,0.00019205,2]
[362253592,1748121042407,-420.0,0.00019205,2]
[362253594,1748121042417,-420.0,0.00019205,2]
[362253596,1748121042426,-420.0,0.00019205,2]
[362253598,1748121042436,-420.0,0.00019205,2]